fUST/lending_fUST_20250625
["ID","MTS","AMOUNT","RATE_DAILY","PERIOD"]
[367507790,1750835444337,-151.0,0.00017987,2]
[367507791,1750835444347,-253.34835268,0.00017987,2]
[367507792,1750835444356,-173.020039,0.00017987,2]
[367507793,1750835444365,-173.020039,0.00017987,2]
[367507794,1750835444375,-151.0,0.00017987,2]
[367507795,1750835444384,-460.0,0.00017987,2]
[367507796,1750835444393,-733.6,0.00017987,2]
[367507797,1750835444402,-151.0,0.00017987,2]
[367507798,1750835444411,-152.258932,0.00017987,2]
[367507799,1750835444421,-460.0,0.00017987,2]
[367507800,1750835444430,-460.0,0.00017987,2]
[367507801,1750835444441,-556.62,0.00017987,2]
[367507802,1750835444453,-460.0,0.00017987,2]
[367507803,1750835444462,-857.32,0.00017987,2]
[367507804,1750835444471,-1382.45,0.00017987,2]
[367507805,1750835444481,-460.0,0.00017987,2]
[367507806,1750835444490,-1352.81,0.00017987,2]
[367507807,1750835444500,-690.1,0.00017987,2]
[367507808,1750835444509,-665.21502,0.00017987,2]
[367507809,1750835444519,-665.21502,0.00017987,2]
[367507810,1750835444528,-460.0,0.00017987,2]
[367507811,1750835444538,-460.0,0.00017987,2]
[367507812,1750835444547,-15021.94,0.00017987,2]
[367507813,1750835444556,-460.0,0.00017987,2]
[367507814,1750835444566,-332.981543,0.00017987,2]
[367507815,1750835444575,-151.0,0.00017987,2]
[367507816,1750835444585,-332.981543,0.00017987,2]
[367507817,1750835444595,-151.0,0.00017987,2]
[367507818,1750835444604,-460.0,0.00017987,2]
[367507819,1750835444613,-151.0,0.00017987,2]
[367507820,1750835444623,-573.88,0.00017987,2]
[367507821,1750835444632,-187.220977,0.00017987,2]
[367507822,1750835444642,-601.35,0.00017987,2]
[367507823,1750835444651,-187.220977,0.00017987,2]
[367507824,1750835444662,-151.0,0.00017987,2]
[367507825,1750835444671,-151.0,0.00017987,2]
[367507826,1750835444680,-460.0,0.00017987,2]
[367507827,1750835444690,-460.0,0.00017987,2]
[367507828,1750835444699,-169.331294,0.00017987,2]
[367507829,1750835444708,-151.0,0.00017987,2]
[367507830,1750835444718,-460.0,0.00017987,2]
[367507831,1750835444727,-160.398208,0.00017987,2]
[367507832,1750835444737,-160.398208,0.00017987,2]
[367507833,1750835444746,-460.0,0.00017987,2]
[367507834,1750835444756,-466.235768,0.00017987,2]
[367507835,1750835444766,-466.235768,0.00017987,2]
[367507836,1750835444775,-159.746546,0.00017987,2]
[367507837,1750835444784,-460.0,0.00017989,2]
[367507838,1750835444793,-460.0,0.00017989,2]
[367507839,1750835444803,-460.0,0.00017989,2]
[367507840,1750835444812,-460.0,0.00017989,2]
[367507841,1750835444821,-460.0,0.00017989,2]
[367507842,1750835444831,-535.27,0.00017989,2]
[367507843,1750835444841,-383.45,0.00017989,2]
[367507844,1750835444850,-460.0,0.00017989,2]
[367507845,1750835444859,-460.0,0.00017989,2]
[367507846,1750835444869,-460.0,0.00017989,2]
[367507847,1750835444878,-519.76312072,0.00017995,2]
[367507848,1750835444888,-1005.57574419,0.00018,2]
[367507849,1750835444897,-151.0,0.00018009,2]
[367507850,1750835444906,-151.0,0.00018009,2]
[367507851,1750835444915,-177.914021,0.00018009,2]
[367507852,1750835444925,-198.199152,0.00018009,2]
[367507853,1750835444934,-166.705909,0.00018009,2]
[367507854,1750835444943,-151.320744,0.00018009,2]
[367507855,1750835444952,-166.705909,0.00018009,2]
[367507856,1750835444961,-1802.00408526,0.00018023,2]
[367507857,1750835444970,-500.0,0.0001805,2]
[367507858,1750835444979,-500.0,0.00018066,2]
[367507859,1750835444989,-176.42018452,0.00018067,2]
[367507860,1750835444998,-2585.98351552,0.000181,2]
[367507861,1750835445007,-2585.98351543,0.000181,2]
[367507862,1750835445017,-2585.98351543,0.000181,2]
[367507863,1750835445027,-2585.98351543,0.000181,2]
[367507864,1750835445036,-2585.98351543,0.000181,2]
[367507865,1750835445046,-1000.0,0.00018119,2]
[367507866,1750835445055,-500.0,0.00018192,2]
[367507867,1750835445064,-500.0,0.00018192,2]
[367507868,1750835445074,-500.0,0.00018192,2]
[367507869,1750835445083,-500.0,0.00018192,2]
[367507870,1750835445092,-500.0,0.00018192,2]
[367507871,1750835445102,-500.0,0.00018192,2]
[367507872,1750835445112,-500.0,0.00018192,2]
[367507873,1750835445121,-500.0,0.00018192,2]
[367507874,1750835445131,-500.0,0.00018192,2]
[367507875,1750835445140,-500.0,0.00018192,2]
[367507876,1750835445149,-500.0,0.00018192,2]
[367507877,1750835445159,-500.0,0.00018192,2]
[367507878,1750835445168,-500.0,0.00018232,2]
[367507879,1750835445177,-500.0,0.00018232,2]
[367507880,1750835445187,-335.86,0.00018251,3]
[367507881,1750835445196,-606.18,0.00018259,2]
[367507882,1750835445205,-763.1,0.00018259,2]
[367507883,1750835445214,-5855.74,0.00018259,2]
[367507884,1750835445223,-460.0,0.00018259,2]
[367507885,1750835445232,-1338.01,0.00018259,2]
[367507886,1750835445241,-1012.65,0.00018259,2]
[367507887,1750835445251,-460.0,0.00018259,2]
[367507888,1750835445260,-6612.54,0.00018259,2]
[367507889,1750835445271,-6069.89,0.00018259,2]
[367507890,1750835445280,-179.02,0.00018259,2]
[367507891,1750835445289,-750.82,0.00018259,2]
[367507892,1750835445298,-533.82,0.00018259,2]
[367507893,1750835445307,-741.32,0.00018259,2]
[367507894,1750835445316,-509.67,0.00018259,2]
[367507895,1750835445326,-1094.55,0.00018259,2]
[367507896,1750835445335,-460.0,0.0001826,2]
[367507897,1750835445344,-460.0,0.0001826,2]
[367507898,1750835445354,-460.0,0.0001826,2]
[367507899,1750835445363,-462.81,0.0001826,2]
[367507900,1750835445371,-1619.32,0.0001826,2]
[367507901,1750835445380,-460.0,0.0001826,2]
[367507902,1750835445389,-353.33576785,0.0001826,2]
[367507903,1750835445399,-460.0,0.0001826,2]
[367507904,1750835445408,-1423.25,0.0001826,2]
[367507905,1750835445417,-460.0,0.0001826,2]
[367507906,1750835445426,-460.0,0.0001826,2]
[367507907,1750835445437,-460.0,0.0001826,2]
[367507908,1750835445449,-460.0,0.0001826,2]
[367507909,1750835445459,-460.0,0.0001826,2]
[367507910,1750835445468,-24791.41,0.0001826,2]
[367507911,1750835445478,-438.14,0.0001826,2]
[367507912,1750835445490,-460.0,0.0001826,2]
[367507913,1750835445499,-1841.29,0.0001826,2]
[367507914,1750835445509,-460.0,0.0001826,2]
[367507915,1750835445521,-460.0,0.0001826,2]
[367507916,1750835445531,-460.0,0.0001826,2]
[367507917,1750835445540,-610.32,0.0001826,2]
[367507918,1750835445551,-460.0,0.00018261,2]
[367507919,1750835445559,-500.0,0.00018261,2]
[367507920,1750835445569,-500.0,0.00018261,2]
[367507921,1750835445578,-460.0,0.00018261,2]
[367507922,1750835445587,-460.0,0.00018261,2]
[367507923,1750835445596,-460.0,0.00018261,2]
[367507924,1750835445606,-527.56,0.00018261,2]
[367507925,1750835445615,-500.15,0.00018261,2]
[367507926,1750835445625,-460.0,0.00018261,2]
[367507927,1750835445634,-460.0,0.00018261,2]
[367507928,1750835445643,-460.0,0.00018261,2]
[367507929,1750835445653,-460.0,0.00018261,2]
[367507930,1750835445663,-286.32114579,0.00018261,2]
[367507931,1750835445672,-300.0,0.00018261,2]
[367507932,1750835445682,-460.0,0.00018261,2]
[367507933,1750835445691,-733.6,0.00018261,2]
[367507934,1750835445700,-460.0,0.00018261,2]
[367507935,1750835445710,-546.29,0.00018261,2]
[367507936,1750835445720,-556.62,0.00018261,2]
[367507937,1750835445729,-460.0,0.00018261,2]
[367507938,1750835445739,-857.32,0.00018261,2]
[367507939,1750835445749,-1382.45,0.00018261,2]
[367507940,1750835445759,-460.0,0.00018261,2]
[367507941,1750835445774,-1352.81,0.00018261,2]
[367507942,1750835445783,-690.1,0.00018261,2]
[367507943,1750835445793,-460.0,0.00018261,2]
[367507944,1750835445803,-460.0,0.00018261,2]
[367507945,1750835445812,-15021.94,0.00018261,2]
[367507946,1750835445822,-460.0,0.00018261,2]
[367507947,1750835445831,-209.69,0.00018261,2]
[367507948,1750835445841,-573.88,0.00018261,2]
[367507949,1750835445850,-601.35,0.00018261,2]
[367507950,1750835445859,-151.0,0.00018261,2]
[367507951,1750835445869,-151.0,0.00018261,2]
[367507952,1750835445878,-460.0,0.00018261,2]
[367507953,1750835445888,-460.0,0.00018261,2]
[367507954,1750835445898,-460.0,0.00018261,2]
[367507955,1750835445909,-460.0,0.00018261,2]
[367507956,1750835445919,-500.0,0.00018262,2]
[367507957,1750835445928,-151.0,0.00018262,2]
[367507958,1750835445937,-151.0,0.00018262,2]
[367507959,1750835445947,-151.0,0.00018262,2]
[367507960,1750835445960,-151.0,0.00018262,2]
[367507961,1750835445970,-166.764922,0.00018262,2]
[367507962,1750835445979,-166.764922,0.00018262,2]
[367507963,1750835445988,-151.0,0.00018262,2]
[367507964,1750835445998,-151.0,0.00018262,2]
[367507965,1750835446007,-173.020039,0.00018262,2]
[367507966,1750835446020,-173.020039,0.00018262,2]
[367507967,1750835446029,-151.0,0.00018262,2]
[367507968,1750835446039,-151.0,0.00018262,2]
[367507969,1750835446048,-665.21502,0.00018262,2]
[367507970,1750835446057,-665.21502,0.00018262,2]
[367507971,1750835446066,-332.981543,0.00018262,2]
[367507972,1750835446075,-151.0,0.00018262,2]
[367507973,1750835446085,-151.0,0.00018262,2]
[367507974,1750835446095,-332.981543,0.00018262,2]
[367507975,1750835446104,-151.0,0.00018262,2]
[367507976,1750835446115,-187.220977,0.00018262,2]
[367507977,1750835446124,-187.220977,0.00018262,2]
[367507978,1750835446133,-151.0,0.00018262,2]
[367507979,1750835446143,-160.398208,0.00018262,2]
[367507980,1750835446152,-160.398208,0.00018262,2]
[367507981,1750835446161,-466.235768,0.00018262,2]
[367507982,1750835446171,-466.235768,0.00018262,2]
[367507983,1750835446180,-159.746546,0.00018262,2]
[367507984,1750835446190,-460.0,0.00018263,2]
[367507985,1750835446199,-460.0,0.00018263,2]
[367507986,1750835446208,-430.0,0.00018263,2]
[367507987,1750835446218,-460.0,0.00018263,2]
[367507988,1750835446228,-460.0,0.00018263,2]
[367507989,1750835446237,-535.27,0.00018263,2]
[367507990,1750835446247,-460.0,0.00018263,2]
[367507991,1750835446257,-400.34292741,0.00018263,2]
[367507992,1750835446267,-460.0,0.00018263,2]
[367507993,1750835446276,-2585.98351543,0.00018279,2]
[367507994,1750835446285,-500.0,0.00018281,2]
[367507996,1750835446296,-500.98945024,0.00018281,2]
[367507997,1750835446305,-500.0,0.00018281,2]
[367507998,1750835446314,-500.0,0.00018281,2]
[367507999,1750835446323,-500.0,0.00018281,2]
[367508000,1750835446333,-151.0,0.00018336,2]
[367508001,1750835446342,-151.342855,0.00018336,2]
[367508002,1750835446351,-151.0,0.00018336,2]
[367508003,1750835446359,-151.0,0.00018336,2]
[367508004,1750835446369,-151.0,0.00018336,2]
[367508005,1750835446378,-151.0,0.00018336,2]
[367508006,1750835446387,-151.0,0.00018336,2]
[367508007,1750835446396,-151.0,0.00018336,2]
[367508008,1750835446405,-151.0,0.00018336,2]
[367508009,1750835446414,-500.0,0.00018336,2]
[367508010,1750835446423,-204.18694135,0.00018336,2]
[367508011,1750835446432,-502.23501126,0.00018336,2]
[367508012,1750835446443,-420.0,0.00018448,2]
[367508014,1750835446454,-234.0,0.00018448,2]
[367508015,1750835446463,-420.0,0.00018449,2]
[367508016,1750835446472,-1802.00408526,0.00018502,2]
[367508017,1750835446481,-500.0,0.00018511,2]
[367508018,1750835446491,-572.27508402,0.00018511,2]
[367508019,1750835446500,-846.80634355,0.00018512,2]
[367508020,1750835446510,-160.0,0.00018512,2]
[367508021,1750835446520,-160.0,0.00018512,2]
[367508022,1750835446529,-524.21181985,0.00018512,2]
[367508023,1750835446539,-425.18553072,0.00018512,2]
[367508024,1750835446548,-836.86812089,0.00018512,2]
[367508025,1750835446557,-213.69531788,0.00018512,2]
[367508026,1750835446566,-230.22714675,0.00018512,2]
[367508027,1750835446576,-606.18,0.00018533,2]
[367508028,1750835446700,-763.1,0.00018533,2]
[367508029,1750835446711,-5855.74,0.00018533,2]
[367508030,1750835446720,-460.0,0.00018533,2]
[367508031,1750835446730,-1338.01,0.00018533,2]
[367508032,1750835446739,-1012.65,0.00018533,2]
[367508033,1750835446749,-460.0,0.00018533,2]
[367508034,1750835446759,-6612.54,0.00018533,2]
[367508035,1750835446769,-6069.89,0.00018533,2]
[367508036,1750835446779,-750.82,0.00018533,2]
[367508037,1750835446788,-533.82,0.00018533,2]
[367508038,1750835446798,-741.32,0.00018533,2]
[367508039,1750835446807,-509.67,0.00018533,2]
[367508040,1750835446816,-1094.55,0.00018533,2]
[367508041,1750835446826,-151.0,0.00018534,2]
[367508042,1750835446835,-151.0,0.00018534,2]
[367508043,1750835446845,-166.705909,0.00018534,2]
[367508044,1750835446854,-166.705909,0.00018534,2]
[367508045,1750835446864,-460.0,0.00018534,2]
[367508046,1750835446873,-460.0,0.00018534,2]
[367508047,1750835446882,-460.0,0.00018534,2]
[367508048,1750835446891,-462.81,0.00018534,2]
[367508049,1750835446901,-1619.32,0.00018534,2]
[367508050,1750835446910,-460.0,0.00018534,2]
[367508051,1750835446920,-460.0,0.00018534,2]
[367508052,1750835446929,-1423.25,0.00018534,2]
[367508053,1750835446939,-460.0,0.00018534,2]
[367508054,1750835446948,-460.0,0.00018534,2]
[367508055,1750835446958,-270.36254585,0.00018534,2]
[367508056,1750835446967,-460.0,0.00018534,2]
[367508057,1750835446977,-460.0,0.00018534,2]
[367508058,1750835446986,-24791.41,0.00018534,2]
[367508059,1750835446995,-460.0,0.00018534,2]
[367508060,1750835447004,-1841.29,0.00018534,2]
[367508061,1750835447014,-460.0,0.00018534,2]
[367508062,1750835447023,-460.0,0.00018534,2]
[367508063,1750835447032,-460.0,0.00018534,2]
[367508064,1750835447041,-610.32,0.00018534,2]
[367508065,1750835447051,-460.0,0.00018535,2]
[367508066,1750835447060,-460.0,0.00018535,2]
[367508067,1750835447069,-460.0,0.00018535,2]
[367508068,1750835447079,-460.0,0.00018535,2]
[367508069,1750835447088,-527.56,0.00018535,2]
[367508070,1750835447097,-500.15,0.00018535,2]
[367508071,1750835447106,-460.0,0.00018535,2]
[367508072,1750835447115,-591.16,0.00018535,2]
[367508073,1750835447124,-460.0,0.00018535,2]
[367508074,1750835447133,-485.60869425,0.00018535,2]
[367508075,1750835447143,-300.0,0.00018535,2]
[367508076,1750835447152,-460.0,0.00018535,2]
[367508077,1750835447161,-733.6,0.00018535,2]
[367508078,1750835447171,-460.0,0.00018535,2]
[367508079,1750835447180,-556.62,0.00018535,2]
[367508080,1750835447190,-217.69423885,0.00018535,2]
[367508081,1750835447199,-857.32,0.00018535,2]
[367508082,1750835447208,-1382.45,0.00018535,2]
[367508083,1750835447218,-460.0,0.00018535,2]
[367508084,1750835447227,-1352.81,0.00018535,2]
[367508085,1750835447236,-690.1,0.00018535,2]
[367508086,1750835447246,-460.0,0.00018535,2]
[367508087,1750835447255,-460.0,0.00018535,2]
[367508088,1750835447265,-460.0,0.00018535,2]
[367508089,1750835447275,-15021.94,0.00018535,2]
[367508090,1750835447284,-573.88,0.00018535,2]
[367508091,1750835447293,-601.35,0.00018535,2]
[367508092,1750835447303,-460.0,0.00018535,2]
[367508093,1750835447312,-460.0,0.00018535,2]
[367508094,1750835447321,-460.0,0.00018535,2]
[367508095,1750835447330,-460.0,0.00018535,2]
[367508096,1750835447339,-460.0,0.00018536,2]
[367508097,1750835447348,-460.0,0.00018536,2]
[367508098,1750835447357,-460.0,0.00018536,2]
[367508099,1750835447367,-460.0,0.00018536,2]
[367508100,1750835447376,-535.27,0.00018536,2]
[367508101,1750835447385,-460.0,0.00018536,2]
[367508102,1750835447394,-151.0,0.00018536,2]
[367508103,1750835447403,-460.0,0.00018536,2]
[367508104,1750835447412,-151.0,0.00018536,2]
[367508105,1750835447422,-254.218059,0.00018536,2]
[367508106,1750835447431,-254.218059,0.00018536,2]
[367508107,1750835447440,-151.0,0.00018536,2]
[367508108,1750835447454,-151.0,0.00018536,2]
[367508109,1750835447463,-1680.0,0.00018539,2]
[367508110,1750835447472,-2585.98351543,0.00018555,2]
[367508111,1750835447482,-179.91004498,0.0001856,2]
[367508112,1750835447492,-305.39710031,0.00018598,2]
[367508113,1750835447502,-151.0,0.000186,2]
[367508114,1750835447511,-151.0,0.000186,2]
[367508115,1750835447521,-437.80027456,0.00018621,2]
[367508116,1750835447531,-151.0,0.00018624,2]
[367508117,1750835447539,-151.0,0.00018624,2]
[367508118,1750835447549,-151.0,0.00018624,2]
[367508119,1750835447558,-151.0,0.00018624,2]
[367508120,1750835447567,-173.020039,0.00018624,2]
[367508121,1750835447576,-173.020039,0.00018624,2]
[367508122,1750835447586,-151.0,0.00018624,2]
[367508123,1750835447595,-152.940868,0.00018624,2]
[367508124,1750835447605,-665.21502,0.00018624,2]
[367508125,1750835447614,-665.21502,0.00018624,2]
[367508126,1750835447623,-332.981543,0.00018624,2]
[367508127,1750835447632,-151.0,0.00018624,2]
[367508128,1750835447641,-151.0,0.00018624,2]
[367508129,1750835447651,-332.981543,0.00018624,2]
[367508130,1750835447660,-151.0,0.00018624,2]
[367508131,1750835447669,-187.220977,0.00018624,2]
[367508132,1750835447679,-187.220977,0.00018624,2]
[367508133,1750835447688,-151.0,0.00018624,2]
[367508134,1750835447697,-160.398208,0.00018624,2]
[367508135,1750835447706,-160.398208,0.00018624,2]
[367508136,1750835447715,-466.235768,0.00018624,2]
[367508137,1750835447724,-466.235768,0.00018624,2]
[367508138,1750835447734,-159.746546,0.00018624,2]
[367508139,1750835447743,-1500.0,0.00018667,2]
[367508140,1750835447753,-871.54184984,0.0001874,2]
[367508141,1750835447763,-502.42028969,0.0001874,2]
[367508142,1750835447773,-1000.0,0.0001874,2]
[367508143,1750835447782,-1000.0,0.0001874,2]
[367508144,1750835447792,-1003.72718248,0.0001874,2]
[367508145,1750835447801,-8616.3,0.00018779,2]
[367508146,1750835447811,-243.20386105,0.00018779,2]
[367508147,1750835447821,-1000.0,0.0001878,2]
[367508148,1750835447830,-151.0,0.000188,2]
[367508149,1750835447839,-606.18,0.00018807,2]
[367508150,1750835447849,-763.1,0.00018807,2]
[367508151,1750835447859,-5855.74,0.00018807,2]
[367508152,1750835447868,-460.0,0.00018807,2]
[367508153,1750835447878,-1338.01,0.00018807,2]
[367508154,1750835447887,-1012.65,0.00018807,2]
[367508155,1750835447896,-460.0,0.00018807,2]
[367508156,1750835447906,-6612.54,0.00018807,2]
[367508157,1750835447916,-6069.89,0.00018807,2]
[367508158,1750835447925,-750.82,0.00018807,2]
[367508159,1750835447934,-533.82,0.00018807,2]
[367508160,1750835447944,-741.32,0.00018807,2]
[367508161,1750835447953,-509.67,0.00018807,2]
[367508162,1750835447962,-1094.55,0.00018807,2]
[367508163,1750835447971,-460.0,0.00018808,2]
[367508164,1750835447981,-460.0,0.00018808,2]
[367508165,1750835447990,-460.0,0.00018808,2]
[367508166,1750835448000,-462.81,0.00018808,2]
[367508167,1750835448009,-1619.32,0.00018808,2]
[367508168,1750835448020,-460.0,0.00018808,2]
[367508169,1750835448030,-460.0,0.00018808,2]
[367508170,1750835448040,-1423.25,0.00018808,2]
[367508171,1750835448049,-460.0,0.00018808,2]
[367508172,1750835448059,-410.0,0.00018808,2]
[367508173,1750835448069,-460.0,0.00018808,2]
[367508174,1750835448079,-1475.3715974,0.00018808,2]
[367508175,1750835448345,-1432.95007486,0.0001689,2]
[367508176,1750835448357,-198.78992514,0.0001689,2]
[367508177,1750835448367,-1631.74,0.00017164,2]
[367508178,1750835448376,-1622.2225287,0.00017438,2]
[367508179,1750835448622,-460.0,0.0001689,2]
[367508180,1750835448631,-292.41,0.00017164,2]
[367508181,1750835448640,-9.5174713,0.00017438,2]
[367508182,1750835448649,-1631.74,0.00017712,2]
[367508183,1750835448658,-1631.74,0.00017986,2]
[367508184,1750835448667,-159.746546,0.00017987,2]
[367508185,1750835448676,-1631.74,0.0001826,2]
[367508186,1750835448686,-159.746546,0.00018262,2]
[367508187,1750835448695,-1631.74,0.00018534,2]
[367508188,1750835448704,-159.746546,0.00018624,2]
[367508189,1750835448715,-23316.0384026,0.00018808,2]
[367508190,1750835448724,-460.0,0.00018808,2]
[367508191,1750835448735,-1841.29,0.00018808,2]
[367508192,1750835448745,-460.0,0.00018808,2]
[367508193,1750835448755,-153.74722362,0.00018808,2]
[367508194,1750835448765,-460.0,0.00018808,2]
[367508195,1750835448775,-610.32,0.00018808,2]
[367508196,1750835448785,-1631.74,0.00018808,2]
[367508197,1750835448795,-460.0,0.00018809,2]
[367508198,1750835448804,-460.0,0.00018809,2]
[367508199,1750835448813,-460.0,0.00018809,2]
[367508200,1750835448824,-460.0,0.00018809,2]
[367508201,1750835448834,-527.56,0.00018809,2]
[367508202,1750835448844,-500.15,0.00018809,2]
[367508203,1750835448854,-460.0,0.00018809,2]
[367508204,1750835448863,-151.0,0.00018809,2]
[367508205,1750835448872,-460.0,0.00018809,2]
[367508206,1750835448882,-151.0,0.00018809,2]
[367508207,1750835448891,-151.0,0.00018809,2]
[367508208,1750835448901,-166.764922,0.00018809,2]
[367508209,1750835448911,-166.764922,0.00018809,2]
[367508210,1750835448920,-151.0,0.00018809,2]
[367508211,1750835448930,-317.58041239,0.00018809,2]
[367508212,1750835448939,-460.0,0.00018809,2]
[367508213,1750835448948,-556.62,0.00018809,2]
[367508214,1750835448957,-857.32,0.00018809,2]
[367508215,1750835448967,-1382.45,0.00018809,2]
[367508216,1750835448976,-460.0,0.00018809,2]
[367508217,1750835448986,-1352.81,0.00018809,2]
[367508218,1750835448995,-690.1,0.00018809,2]
[367508219,1750835449005,-24.59377899,0.00018809,2]
[367508220,1750835449018,-435.40622101,0.00018809,2]
[367508221,1750835449027,-460.0,0.00018809,2]
[367508222,1750835449037,-773.27439299,0.00018809,2]
[367508223,1750835449049,-375.481998,0.00018809,2]
[367508224,1750835449121,-3821.57261825,0.00018809,2]
[367508225,1750835449133,-5420.69448651,0.00018809,2]
[367508226,1750835449144,-4630.91650425,0.00018809,2]
[367508227,1750835449273,-460.0,0.00018809,2]
[367508228,1750835449284,-573.88,0.00018809,2]
[367508229,1750835449294,-601.35,0.00018809,2]
[367508230,1750835449304,-460.0,0.00018809,2]
[367508231,1750835449313,-460.0,0.00018809,2]
[367508232,1750835449323,-460.0,0.00018809,2]
[367508233,1750835449333,-460.0,0.00018809,2]
[367508234,1750835449343,-460.0,0.0001881,2]
[367508235,1750835449352,-460.0,0.0001881,2]
[367508236,1750835449361,-460.0,0.0001881,2]
[367508237,1750835449372,-151.0,0.0001881,2]
[367508238,1750835449381,-460.0,0.0001881,2]
[367508239,1750835449391,-535.27,0.0001881,2]
[367508240,1750835449401,-151.0,0.0001881,2]
[367508241,1750835449410,-208.64636091,0.0001881,2]
[367508242,1750835449419,-460.0,0.0001881,2]
[367508243,1750835449429,-151.0,0.0001881,2]
[367508244,1750835449438,-151.0,0.0001881,2]
[367508245,1750835449451,-225.065116,0.0001881,2]
[367508246,1750835449461,-151.0,0.0001881,2]
[367508247,1750835449470,-151.0,0.0001881,2]
[367508248,1750835449479,-151.0,0.0001881,2]
[367508249,1750835449490,-151.0,0.0001881,2]
[367508250,1750835449499,-151.0,0.0001881,2]
[367508251,1750835449509,-228.802945,0.0001881,2]
[367508252,1750835449520,-151.0,0.0001881,2]
[367508253,1750835449529,-166.705909,0.0001881,2]
[367508254,1750835449539,-166.705909,0.0001881,2]
[367508255,1750835449548,-1004.49105772,0.00018829,2]
[367508256,1750835449559,-1000.0,0.00018829,2]
[367508257,1750835449570,-2585.98351543,0.00018831,2]
[367508258,1750835449579,-1276.91512521,0.000189,2]
[367508259,1750835449589,-2995.0,0.00018935,2]
[367508260,1750835449599,-1802.00408526,0.00018981,2]
[367508261,1750835449608,-168.77244961,0.00018982,2]
[367508262,1750835449618,-606.18,0.00019081,2]
[367508263,1750835449628,-715.63735689,0.00019081,2]
[367508264,1750835450971,-47.46264311,0.00019081,2]
[367508265,1750835450980,-1289.91827189,0.00019081,2]
[367508266,1750835450991,-574.47949418,0.00019081,2]
[367508267,1750835451003,-1530.18372225,0.00019081,2]
[367508268,1750835451014,-2461.15851168,0.00019081,2]
[367508269,1750835451024,-460.0,0.00019081,2]
[367508270,1750835451033,-1338.01,0.00019081,2]
[367508271,1750835451042,-1012.65,0.00019081,2]
[367508272,1750835451051,-21.37040641,0.00019081,2]
[367508273,1750835547026,-196.0,0.00016381,2]
[367508275,1750835623664,2682.9758409,0.00015888,2]
[367508276,1750835627454,-164.9434194,0.00016258,2]
[367508277,1750835683757,-237.09042332,0.00016258,2]
[367508278,1750835683779,-4.37643971,0.00016381,2]
[367508279,1750835683801,-255.0,0.0001651,2]
[367508280,1750835683823,-255.0,0.00016515,2]
[367508281,1750835683844,-255.0,0.0001652,2]
[367508282,1750835683865,-153.53313697,0.00016525,2]
[367508283,1750835939611,7726.33,0.00025575,60]
[367508284,1750836275181,419.2561146,0.00015855,2]
[367508305,1750836394928,-19.54582936,0.00016525,2]
[367508306,1750836394950,-236.45417064,0.00016691,2]
[367508332,1750836514956,452.99999987,0.00025578,120]
[367508337,1750836527780,-300.0,0.00016688,2]
[367508344,1750836544911,160.779413,0.00013699,2]
[367508397,1750836632709,-9.5264451,0.00016688,2]
[367508398,1750836632719,-243.79280493,0.00016773,2]
[367508399,1750836632728,-1954.03922202,0.00016788,2]